[Event "Titled Tuesday Blitz October 5 2021"]
[White "Le, Tuan Minh"]
[Black "Moroni, Luca Jr"]
[WhiteFideId "12401153"]
[BlackFideId "865834"]
[WhiteElo "2450"]
[BlackElo "2491"]
[Result "1-0"]
[Round "06"]
[TimeControl "180+1"]
[Date "2021.10.05"]
[WhiteClock "0:00:08"]
[BlackClock "0:00:02"]

1. d4 {[%clk 0:03:00]}  g6 {[%clk 0:02:59]} 2. e4 {[%clk 0:02:58]}  Bg7 {[%clk 0:03:00]} 3. Nf3 {[%clk 0:02:57]}  d6 {[%clk 0:03:01]} 4. Bc4 {[%clk 0:02:57]}  Nf6 {[%clk 0:03:01]} 5. Qe2 {[%clk 0:02:57]}  O-O {[%clk 0:03:02]} 6. O-O {[%clk 0:02:58]}  c6 {[%clk 0:03:02]} 7. Bb3 {[%clk 0:02:57]}  a5 {[%clk 0:02:56]} 8. a3 {[%clk 0:02:54]}  b6 {[%clk 0:02:55]} 9. Rd1 {[%clk 0:02:41]}  Qc7 {[%clk 0:02:53]} 10. h3 {[%clk 0:02:40]}  e5 {[%clk 0:02:49]} 11. Nc3 {[%clk 0:02:37]}  Ba6 {[%clk 0:02:46]} 12. Qd2 {[%clk 0:02:15]}  Nbd7 {[%clk 0:02:26]} 13. dxe5 {[%clk 0:01:59]}  dxe5 {[%clk 0:02:26]} 14. Qd6 {[%clk 0:01:59]}  Qxd6 {[%clk 0:02:00]} 15. Rxd6 {[%clk 0:01:58]}  Nc5 {[%clk 0:01:17]} 16. Rxc6 {[%clk 0:01:58]}  Nxb3 {[%clk 0:01:03]} 17. cxb3 {[%clk 0:01:59]}  Bb7 {[%clk 0:01:02]} 18. Rxb6 {[%clk 0:01:59]}  Bxe4 {[%clk 0:01:01]} 19. Rxf6 {[%clk 0:01:59]}  Bxf6 {[%clk 0:01:02]} 20. Nxe4 {[%clk 0:01:58]}  Bg7 {[%clk 0:01:03]} 21. Be3 {[%clk 0:01:21]}  f5 {[%clk 0:01:01]} 22. Nc5 {[%clk 0:01:21]}  e4 {[%clk 0:00:59]} 23. Ng5 {[%clk 0:01:00]}  Bxb2 {[%clk 0:00:50]} 24. Ra2 {[%clk 0:01:00]}  Bh8 {[%clk 0:00:48]} 25. Nge6 {[%clk 0:00:55]}  Rfc8 {[%clk 0:00:48]} 26. Rd2 {[%clk 0:00:51]}  Bf6 {[%clk 0:00:46]} 27. Rd7 {[%clk 0:00:50]}  Rab8 {[%clk 0:00:38]} 28. g4 {[%clk 0:00:44]}  Rb6 {[%clk 0:00:29]} 29. gxf5 {[%clk 0:00:42]}  gxf5 {[%clk 0:00:30]} 30. Rd5 {[%clk 0:00:42]}  Bb2 {[%clk 0:00:15]} 31. Rxf5 {[%clk 0:00:30]}  Rd6 {[%clk 0:00:15]} 32. a4 {[%clk 0:00:18]}  h6 {[%clk 0:00:09]} 33. Nf4 {[%clk 0:00:15]}  Kh7 {[%clk 0:00:06]} 34. Nxe4 {[%clk 0:00:16]}  Rdc6 {[%clk 0:00:04]} 35. Kg2 {[%clk 0:00:13]}  Rg8+ {[%clk 0:00:04]} 36. Kf3 {[%clk 0:00:13]}  Rb8 {[%clk 0:00:04]} 37. Rxa5 {[%clk 0:00:11]}  Rxb3 {[%clk 0:00:03]} 38. Rb5 {[%clk 0:00:12]}  Rxb5 {[%clk 0:00:03]} 39. axb5 {[%clk 0:00:13]}  Rc4 {[%clk 0:00:03]} 40. b6 {[%clk 0:00:12]}  Rb4 {[%clk 0:00:03]} 41. Nd5 {[%clk 0:00:12]}  Rb5 {[%clk 0:00:03]} 42. Nc7 {[%clk 0:00:12]}  Rb3 {[%clk 0:00:04]} 43. Ke2 {[%clk 0:00:11]}  Ba3 {[%clk 0:00:02]} 44. Nd2 {[%clk 0:00:10]}  Rb2 {[%clk 0:00:02]} 45. Kd3 {[%clk 0:00:10]}  Be7 {[%clk 0:00:02]} 46. Nd5 {[%clk 0:00:10]}  Bd8 {[%clk 0:00:02]} 47. Nc4 {[%clk 0:00:10]}  Rb3+ {[%clk 0:00:02]} 48. Ke4 {[%clk 0:00:10]}  Rb5 {[%clk 0:00:02]} 49. Ne5 {[%clk 0:00:10]}  Bxb6 {[%clk 0:00:01]} 50. Nxb6 {[%clk 0:00:10]}  Rb1 {[%clk 0:00:02]} 51. Nd5 {[%clk 0:00:10]}  Rh1 {[%clk 0:00:03]} 52. Nf4 {[%clk 0:00:11]}  Kg7 {[%clk 0:00:03]} 53. Kf5 {[%clk 0:00:11]}  Kh7 {[%clk 0:00:03]} 54. Ng4 {[%clk 0:00:11]}  Rg1 {[%clk 0:00:03]} 55. Nh5 {[%clk 0:00:10]}  Rb1 {[%clk 0:00:03]} 56. Nxh6 {[%clk 0:00:09]}  Rb5+ {[%clk 0:00:02]} 57. Kg4 {[%clk 0:00:09]}  Rb7 {[%clk 0:00:02]} 58. Nf5 {[%clk 0:00:09]}  Kg6 {[%clk 0:00:02]} 59. Nf4+ {[%clk 0:00:10]}  Kh7 {[%clk 0:00:02]} 60. Ng3 {[%clk 0:00:11]}  Rb4 {[%clk 0:00:03]} 61. h4 {[%clk 0:00:11]}  Ra4 {[%clk 0:00:03]} 62. h5 {[%clk 0:00:11]}  Ra6 {[%clk 0:00:04]} 63. Kg5 {[%clk 0:00:11]}  Ra4 {[%clk 0:00:04]} 64. Nf5 {[%clk 0:00:11]}  Ra6 {[%clk 0:00:05]} 65. Nd5 {[%clk 0:00:10]}  Ra8 {[%clk 0:00:06]} 66. Bd4 {[%clk 0:00:09]}  Ra2 {[%clk 0:00:05]} 67. Nf6+ {[%clk 0:00:10]}  Kh8 {[%clk 0:00:06]} 68. Ng4+ {[%clk 0:00:09]}  Kh7 {[%clk 0:00:05]} 69. f4 {[%clk 0:00:09]}  Ra4 {[%clk 0:00:04]} 70. Be5 {[%clk 0:00:10]}  Ra8 {[%clk 0:00:05]} 71. Ne7 {[%clk 0:00:09]}  Ra6 {[%clk 0:00:03]} 72. Nf6+ {[%clk 0:00:09]}  Kh8 {[%clk 0:00:03]} 73. Ng6+ {[%clk 0:00:06]}  Kg7 {[%clk 0:00:03]} 74. Ne4+ {[%clk 0:00:06]}  Kh7 {[%clk 0:00:03]} 75. Nh4 {[%clk 0:00:07]}  Ra2 {[%clk 0:00:02]} 76. f5 {[%clk 0:00:07]}  Ra5 {[%clk 0:00:01]} 77. Kf4 {[%clk 0:00:06]}  Ra2 {[%clk 0:00:02]} 78. Nf3 {[%clk 0:00:06]}  Ra8 {[%clk 0:00:02]} 79. f6 {[%clk 0:00:07]}  Kh6 {[%clk 0:00:03]} 80. Kg4 {[%clk 0:00:07]}  Rg8+ {[%clk 0:00:03]} 81. Neg5 {[%clk 0:00:07]}  Rf8 {[%clk 0:00:04]} 82. Bd4 {[%clk 0:00:06]}  Rxf6 {[%clk 0:00:05]} 83. Be3 {[%clk 0:00:05]}  Ra6 {[%clk 0:00:04]} 84. Ne5 {[%clk 0:00:05]}  Ra4+ {[%clk 0:00:03]} 85. Ne4+ {[%clk 0:00:05]}  Kh7 {[%clk 0:00:03]} 86. Kf5 {[%clk 0:00:06]}  Ra6 {[%clk 0:00:03]} 87. Nf6+ {[%clk 0:00:06]}  Kh8 {[%clk 0:00:04]} 88. Ng6+ {[%clk 0:00:05]}  Kg7 {[%clk 0:00:03]} 89. h6+ {[%clk 0:00:06]}  Kf7 {[%clk 0:00:04]} 90. Ne5+ {[%clk 0:00:06]}  Ke7 {[%clk 0:00:03]} 91. Bc5+ {[%clk 0:00:07]}  Kd8 {[%clk 0:00:02]} 92. h7 {[%clk 0:00:08]}  Kc7 {[%clk 0:00:02]} 93. h8=Q {[%clk 0:00:08]}  Ra8 {[%clk 0:00:02]} 94. Qg7+ {[%clk 0:00:08]} 1-0


[Site "https://www.chess.com"]

[Event "Titled Tuesday Blitz October 5 2021"]
[White "Madaminov, Mukhiddin"]
[Black "Timofeev, Artyom"]
[WhiteFideId "14210703"]
[BlackFideId "4140419"]
[WhiteElo "1855"]
[BlackElo "2591"]
[Result "0-1"]
[Round "06"]
[TimeControl "180+1"]
[Date "2021.10.05"]
[WhiteClock "0:00:02"]
[BlackClock "0:00:08"]

1. e4 {[%clk 0:03:00]}  c5 {[%clk 0:02:58]} 2. Nf3 {[%clk 0:03:01]}  Nc6 {[%clk 0:02:58]} 3. Nc3 {[%clk 0:03:01]}  e5 {[%clk 0:02:57]} 4. Bc4 {[%clk 0:03:01]}  d6 {[%clk 0:02:58]} 5. d3 {[%clk 0:02:58]}  Be7 {[%clk 0:02:58]} 6. O-O {[%clk 0:02:57]}  Nf6 {[%clk 0:02:57]} 7. Ng5 {[%clk 0:02:57]}  O-O {[%clk 0:02:57]} 8. f4 {[%clk 0:02:58]}  Bg4 {[%clk 0:02:57]} 9. Qe1 {[%clk 0:02:58]}  exf4 {[%clk 0:02:55]} 10. Bxf4 {[%clk 0:02:58]}  Nd4 {[%clk 0:02:55]} 11. Qd2 {[%clk 0:02:58]}  h6 {[%clk 0:02:52]} 12. Nf3 {[%clk 0:02:58]}  Nxf3+ {[%clk 0:02:51]} 13. gxf3 {[%clk 0:02:59]}  Be6 {[%clk 0:02:48]} 14. Kh1 {[%clk 0:02:58]}  Kh7 {[%clk 0:02:47]} 15. Rae1 {[%clk 0:02:24]}  Nh5 {[%clk 0:02:36]} 16. Nd5 {[%clk 0:02:20]}  Bf6 {[%clk 0:02:31]} 17. c3 {[%clk 0:01:36]}  b5 {[%clk 0:02:18]} 18. Bxb5 {[%clk 0:01:31]}  Bxd5 {[%clk 0:02:18]} 19. exd5 {[%clk 0:01:30]}  Rb8 {[%clk 0:02:18]} 20. a4 {[%clk 0:00:48]}  a6 {[%clk 0:02:17]} 21. Bxa6 {[%clk 0:00:49]}  Nxf4 {[%clk 0:02:18]} 22. Qxf4 {[%clk 0:00:50]}  Rxb2 {[%clk 0:02:18]} 23. Qe4+ {[%clk 0:00:50]}  g6 {[%clk 0:02:15]} 24. Re2 {[%clk 0:00:51]}  Rxe2 {[%clk 0:02:08]} 25. Qxe2 {[%clk 0:00:51]}  Bxc3 {[%clk 0:02:08]} 26. Bb5 {[%clk 0:00:50]}  Qf6 {[%clk 0:02:06]} 27. Qe4 {[%clk 0:00:41]}  Kg7 {[%clk 0:02:04]} 28. Rg1 {[%clk 0:00:35]}  Ra8 {[%clk 0:01:59]} 29. Rg2 {[%clk 0:00:27]}  Be5 {[%clk 0:01:54]} 30. Re2 {[%clk 0:00:27]}  Ra7 {[%clk 0:01:53]} 31. Bc6 {[%clk 0:00:23]}  Qg5 {[%clk 0:01:48]} 32. Re1 {[%clk 0:00:17]}  Qd2 {[%clk 0:01:41]} 33. Qe2 {[%clk 0:00:14]}  Qf4 {[%clk 0:01:40]} 34. Qg2 {[%clk 0:00:11]}  h5 {[%clk 0:01:21]} 35. Re4 {[%clk 0:00:08]}  Qf6 {[%clk 0:01:16]} 36. Bb5 {[%clk 0:00:06]}  Rb7 {[%clk 0:01:14]} 37. Qe2 {[%clk 0:00:06]}  Qg5 {[%clk 0:01:12]} 38. Qg2 {[%clk 0:00:06]}  Qc1+ {[%clk 0:01:05]} 39. Qg1 {[%clk 0:00:06]}  Qd2 {[%clk 0:01:06]} 40. h3 {[%clk 0:00:01]}  Rb8 {[%clk 0:00:55]} 41. Re1 {[%clk 0:00:01]}  Rh8 {[%clk 0:00:49]} 42. Qf1 {[%clk 0:00:01]}  h4 {[%clk 0:00:49]} 43. f4 {[%clk 0:00:02]}  Bf6 {[%clk 0:00:34]} 44. Re2 {[%clk 0:00:02]}  Qb4 {[%clk 0:00:33]} 45. Re4 {[%clk 0:00:02]}  Qc3 {[%clk 0:00:32]} 46. f5 {[%clk 0:00:02]}  g5 {[%clk 0:00:31]} 47. Qg1 {[%clk 0:00:02]}  Kh6 {[%clk 0:00:27]} 48. Qf1 {[%clk 0:00:01]}  Rb8 {[%clk 0:00:26]} 49. Kg2 {[%clk 0:00:01]}  Qc2+ {[%clk 0:00:25]} 50. Qf2 {[%clk 0:00:01]}  Qd1 {[%clk 0:00:23]} 51. Qe2 {[%clk 0:00:02]}  Qc1 {[%clk 0:00:19]} 52. Qe3 {[%clk 0:00:02]}  Qb2+ {[%clk 0:00:17]} 53. Qe2 {[%clk 0:00:02]}  Qc3 {[%clk 0:00:17]} 54. Qe3 {[%clk 0:00:03]}  Kg7 {[%clk 0:00:16]} 55. Rg4 {[%clk 0:00:02]}  Kf8 {[%clk 0:00:12]} 56. Re4 {[%clk 0:00:01]}  Kg7 {[%clk 0:00:11]} 57. Qe1 {[%clk 0:00:01]}  Qb2+ {[%clk 0:00:09]} 58. Qe2 {[%clk 0:00:02]}  Qc1 {[%clk 0:00:09]} 59. Qe3 {[%clk 0:00:02]}  Qd1 {[%clk 0:00:09]} 60. Qe2 {[%clk 0:00:02]}  Qa1 {[%clk 0:00:08]} 61. Qe1 {[%clk 0:00:03]}  Qa2+ {[%clk 0:00:07]} 62. Qe2 {[%clk 0:00:03]}  Qb3 {[%clk 0:00:08]} 63. Qe3 {[%clk 0:00:04]}  Rxb5 {[%clk 0:00:07]} 64. axb5 {[%clk 0:00:04]}  Qxb5 {[%clk 0:00:08]} 65. Rg4 {[%clk 0:00:04]}  Qb2+ {[%clk 0:00:07]} 66. Qf2 {[%clk 0:00:04]}  Qe5 {[%clk 0:00:06]} 67. Qf3 {[%clk 0:00:04]}  Kf8 {[%clk 0:00:05]} 68. Re4 {[%clk 0:00:04]}  Qc3 {[%clk 0:00:06]} 69. Re2 {[%clk 0:00:04]}  Kg7 {[%clk 0:00:06]} 70. Re4 {[%clk 0:00:03]}  Qc2+ {[%clk 0:00:06]} 71. Qf2 {[%clk 0:00:04]}  Qxd3 {[%clk 0:00:06]} 72. Qe2 {[%clk 0:00:04]}  Qxd5 {[%clk 0:00:06]} 73. Qf3 {[%clk 0:00:05]}  c4 {[%clk 0:00:06]} 74. Rg4 {[%clk 0:00:04]}  Qxf3+ {[%clk 0:00:05]} 75. Kxf3 {[%clk 0:00:05]}  d5 {[%clk 0:00:06]} 76. Ke3 {[%clk 0:00:04]}  Kf8 {[%clk 0:00:06]} 77. Kd2 {[%clk 0:00:03]}  Ke7 {[%clk 0:00:07]} 78. Rg1 {[%clk 0:00:03]}  Kd6 {[%clk 0:00:07]} 79. Re1 {[%clk 0:00:04]}  Be5 {[%clk 0:00:07]} 80. Re2 {[%clk 0:00:04]}  f6 {[%clk 0:00:08]} 81. Re1 {[%clk 0:00:04]}  d4 {[%clk 0:00:08]} 82. Re4 {[%clk 0:00:03]}  Kd5 {[%clk 0:00:09]} 83. Rg4 {[%clk 0:00:03]}  Bf4+ {[%clk 0:00:09]} 84. Ke2 {[%clk 0:00:02]}  Ke4 {[%clk 0:00:09]} 85. Rg1 {[%clk 0:00:03]}  d3+ {[%clk 0:00:09]} 86. Kf2 {[%clk 0:00:02]}  c3 {[%clk 0:00:10]} 87. Ra1 {[%clk 0:00:01]}  c2 {[%clk 0:00:10]} 88. Ra4+ {[%clk 0:00:01]}  Kxf5 {[%clk 0:00:10]} 89. Kf3 {[%clk 0:00:01]}  Be5 {[%clk 0:00:09]} 90. Rc4 {[%clk 0:00:01]}  d2 {[%clk 0:00:10]} 91. Ke3 {[%clk 0:00:01]}  d1=Q {[%clk 0:00:09]} 92. Rf4+ {[%clk 0:00:02]}  gxf4+ {[%clk 0:00:07]} 93. Kf2 {[%clk 0:00:02]}  Qd2+ {[%clk 0:00:07]} 94. Kf3 {[%clk 0:00:02]}  Qe3+ {[%clk 0:00:07]} 95. Kg2 {[%clk 0:00:02]}  f3+ {[%clk 0:00:08]} 96. Kh1 {[%clk 0:00:02]}  Qe1# {[%clk 0:00:08]} 0-1


[Site "https://www.chess.com"]

[Event "Titled Tuesday Blitz October 5 2021"]
[White "Martinez Reyes, Pedro Ramon"]
[Black "Arabidze, Meri"]
[WhiteFideId "3901807"]
[BlackFideId "13604040"]
[WhiteElo "2410"]
[BlackElo "2432"]
[Result "0-1"]
[Round "06"]
[TimeControl "180+1"]
[Date "2021.10.05"]
[WhiteClock "0:00:14"]
[BlackClock "0:00:16"]

1. e4 {[%clk 0:03:00]}  c5 {[%clk 0:02:58]} 2. Nf3 {[%clk 0:03:01]}  e6 {[%clk 0:02:58]} 3. c3 {[%clk 0:02:59]}  d5 {[%clk 0:02:58]} 4. exd5 {[%clk 0:03:00]}  exd5 {[%clk 0:02:58]} 5. d4 {[%clk 0:03:01]}  Nc6 {[%clk 0:02:59]} 6. Bb5 {[%clk 0:03:01]}  Bd6 {[%clk 0:02:59]} 7. O-O {[%clk 0:02:59]}  Ne7 {[%clk 0:02:56]} 8. Be3 {[%clk 0:02:57]}  c4 {[%clk 0:02:53]} 9. b3 {[%clk 0:02:55]}  cxb3 {[%clk 0:02:50]} 10. axb3 {[%clk 0:02:56]}  O-O {[%clk 0:02:50]} 11. Nbd2 {[%clk 0:02:49]}  Nf5 {[%clk 0:02:50]} 12. Re1 {[%clk 0:02:45]}  h6 {[%clk 0:02:47]} 13. Bd3 {[%clk 0:02:44]}  Qf6 {[%clk 0:02:45]} 14. b4 {[%clk 0:02:42]}  Nce7 {[%clk 0:02:37]} 15. Nf1 {[%clk 0:02:32]}  Ng6 {[%clk 0:02:29]} 16. Ng3 {[%clk 0:02:14]}  Nxe3 {[%clk 0:02:26]} 17. Rxe3 {[%clk 0:02:08]}  Nf4 {[%clk 0:02:24]} 18. Bf1 {[%clk 0:02:07]}  Bg4 {[%clk 0:02:22]} 19. Qb3 {[%clk 0:02:01]}  a6 {[%clk 0:02:15]} 20. Ne5 {[%clk 0:01:59]}  Be6 {[%clk 0:02:13]} 21. Rae1 {[%clk 0:01:57]}  h5 {[%clk 0:02:09]} 22. Ne2 {[%clk 0:01:39]}  Ng6 {[%clk 0:01:46]} 23. Nc1 {[%clk 0:01:21]}  h4 {[%clk 0:01:41]} 24. Ncd3 {[%clk 0:01:21]}  Rac8 {[%clk 0:01:38]} 25. Nc5 {[%clk 0:01:17]}  Bxc5 {[%clk 0:01:30]} 26. bxc5 {[%clk 0:01:17]}  Rc7 {[%clk 0:01:29]} 27. Qb6 {[%clk 0:01:16]}  Rfc8 {[%clk 0:01:29]} 28. Nxg6 {[%clk 0:00:58]}  Qxg6 {[%clk 0:01:30]} 29. Bd3 {[%clk 0:00:58]}  Qh6 {[%clk 0:01:22]} 30. h3 {[%clk 0:00:54]}  Qf6 {[%clk 0:01:06]} 31. Rf3 {[%clk 0:00:51]}  Qh6 {[%clk 0:01:03]} 32. Rfe3 {[%clk 0:00:48]}  Qf6 {[%clk 0:00:49]} 33. Bb1 {[%clk 0:00:47]}  Re7 {[%clk 0:00:43]} 34. Ba2 {[%clk 0:00:45]}  Rd7 {[%clk 0:00:39]} 35. Qb2 {[%clk 0:00:44]}  g6 {[%clk 0:00:29]} 36. Bb3 {[%clk 0:00:42]}  Kg7 {[%clk 0:00:29]} 37. Ba4 {[%clk 0:00:42]}  Rdc7 {[%clk 0:00:29]} 38. Qb6 {[%clk 0:00:42]}  Bf5 {[%clk 0:00:28]} 39. Qb2 {[%clk 0:00:36]}  Be4 {[%clk 0:00:28]} 40. Bb3 {[%clk 0:00:32]}  b6 {[%clk 0:00:27]} 41. f3 {[%clk 0:00:28]}  Bf5 {[%clk 0:00:27]} 42. Bxd5 {[%clk 0:00:20]}  bxc5 {[%clk 0:00:28]} 43. Be4 {[%clk 0:00:20]}  cxd4 {[%clk 0:00:26]} 44. cxd4 {[%clk 0:00:21]}  Bxe4 {[%clk 0:00:19]} 45. Rxe4 {[%clk 0:00:20]}  Rc2 {[%clk 0:00:20]} 46. Qa1 {[%clk 0:00:20]}  Rd2 {[%clk 0:00:17]} 47. R4e2 {[%clk 0:00:17]}  Rcc2 {[%clk 0:00:16]} 48. Rxd2 {[%clk 0:00:17]}  Rxd2 {[%clk 0:00:17]} 49. d5 {[%clk 0:00:18]}  Rxd5 {[%clk 0:00:14]} 50. Qxf6+ {[%clk 0:00:17]}  Kxf6 {[%clk 0:00:15]} 51. Ra1 {[%clk 0:00:17]}  a5 {[%clk 0:00:15]} 52. Ra4 {[%clk 0:00:18]}  g5 {[%clk 0:00:15]} 53. Kf2 {[%clk 0:00:18]}  Rb5 {[%clk 0:00:15]} 54. f4 {[%clk 0:00:18]}  Kg6 {[%clk 0:00:12]} 55. Kf3 {[%clk 0:00:18]}  f6 {[%clk 0:00:12]} 56. fxg5 {[%clk 0:00:18]}  fxg5 {[%clk 0:00:13]} 57. Kf2 {[%clk 0:00:18]}  Rb2+ {[%clk 0:00:13]} 58. Kf3 {[%clk 0:00:16]}  Rb3+ {[%clk 0:00:13]} 59. Kf2 {[%clk 0:00:15]}  Rb5 {[%clk 0:00:14]} 60. Kf3 {[%clk 0:00:15]}  Kf5 {[%clk 0:00:14]} 61. Ra3 {[%clk 0:00:14]}  Rc5 {[%clk 0:00:14]} 62. g3 {[%clk 0:00:13]}  hxg3 {[%clk 0:00:13]} 63. Kxg3 {[%clk 0:00:14]}  Rb5 {[%clk 0:00:13]} 64. Rc3 {[%clk 0:00:14]}  a4 {[%clk 0:00:12]} 65. Rf3+ {[%clk 0:00:15]}  Kg6 {[%clk 0:00:12]} 66. Rf2 {[%clk 0:00:14]}  a3 {[%clk 0:00:12]} 67. Rf8 {[%clk 0:00:12]}  Ra5 {[%clk 0:00:12]} 68. Rf1 {[%clk 0:00:12]}  a2 {[%clk 0:00:12]} 69. Ra1 {[%clk 0:00:13]}  Kf5 {[%clk 0:00:13]} 70. Kf3 {[%clk 0:00:14]}  Ra3+ {[%clk 0:00:13]} 71. Kg2 {[%clk 0:00:14]}  Ke4 {[%clk 0:00:13]} 72. Kh2 {[%clk 0:00:14]}  Kd4 {[%clk 0:00:14]} 73. Kg2 {[%clk 0:00:14]}  Kc4 {[%clk 0:00:14]} 74. Kh2 {[%clk 0:00:14]}  Kb3 {[%clk 0:00:14]} 75. Kg3 {[%clk 0:00:14]}  Kb2+ {[%clk 0:00:15]} 76. Kg4 {[%clk 0:00:14]}  Kxa1 {[%clk 0:00:16]} 77. Kxg5 {[%clk 0:00:14]}  Rxh3 {[%clk 0:00:16]} 0-1


[Site "https://www.chess.com"]

[Event "Titled Tuesday Blitz October 5 2021"]
[White "Mikhalevski, Victor"]
[Black "Rasulov, Vugar"]
[WhiteFideId "2801914"]
[BlackFideId "13402390"]
[WhiteElo "2577"]
[BlackElo "2560"]
[Result "1-0"]
[Round "06"]
[TimeControl "180+1"]
[Date "2021.10.05"]
[WhiteClock "0:00:29"]
[BlackClock "0:00:14"]

1. d4 {[%clk 0:03:00]}  Nf6 {[%clk 0:03:00]} 2. Nf3 {[%clk 0:03:00]}  e6 {[%clk 0:03:00]} 3. c4 {[%clk 0:02:59]}  Bb4+ {[%clk 0:03:00]} 4. Nbd2 {[%clk 0:02:58]}  O-O {[%clk 0:02:58]} 5. a3 {[%clk 0:02:56]}  Be7 {[%clk 0:02:58]} 6. e4 {[%clk 0:02:55]}  d6 {[%clk 0:02:57]} 7. Bd3 {[%clk 0:02:53]}  Nbd7 {[%clk 0:02:54]} 8. Nb1 {[%clk 0:02:52]}  e5 {[%clk 0:02:52]} 9. Nc3 {[%clk 0:02:50]}  exd4 {[%clk 0:02:52]} 10. Nxd4 {[%clk 0:02:50]}  Nc5 {[%clk 0:02:51]} 11. O-O {[%clk 0:02:48]}  Re8 {[%clk 0:02:46]} 12. Re1 {[%clk 0:02:47]}  Nxd3 {[%clk 0:02:43]} 13. Qxd3 {[%clk 0:02:46]}  Nd7 {[%clk 0:02:39]} 14. b3 {[%clk 0:02:39]}  Nc5 {[%clk 0:02:37]} 15. Qc2 {[%clk 0:02:32]}  c6 {[%clk 0:02:34]} 16. Bf4 {[%clk 0:02:29]}  Bg5 {[%clk 0:02:28]} 17. Bg3 {[%clk 0:02:18]}  Bh4 {[%clk 0:02:28]} 18. Rad1 {[%clk 0:02:17]}  Bxg3 {[%clk 0:02:28]} 19. hxg3 {[%clk 0:02:17]}  Qf6 {[%clk 0:02:27]} 20. b4 {[%clk 0:02:14]}  Nd7 {[%clk 0:02:20]} 21. Nf5 {[%clk 0:02:12]}  Re6 {[%clk 0:02:17]} 22. f4 {[%clk 0:02:07]}  h5 {[%clk 0:02:09]} 23. Rd3 {[%clk 0:01:53]}  Nb6 {[%clk 0:01:58]} 24. Nxd6 {[%clk 0:01:45]}  Rxd6 {[%clk 0:01:48]} 25. e5 {[%clk 0:01:45]}  Qg6 {[%clk 0:01:48]} 26. exd6 {[%clk 0:01:44]}  Bf5 {[%clk 0:01:49]} 27. Red1 {[%clk 0:01:35]}  Nxc4 {[%clk 0:01:48]} 28. d7 {[%clk 0:01:31]}  Bxd3 {[%clk 0:01:28]} 29. Qxd3 {[%clk 0:01:27]}  Qxd3 {[%clk 0:01:28]} 30. Rxd3 {[%clk 0:01:27]}  Rd8 {[%clk 0:01:28]} 31. Ne4 {[%clk 0:01:28]}  b6 {[%clk 0:01:27]} 32. Ng5 {[%clk 0:01:22]}  Kf8 {[%clk 0:01:24]} 33. a4 {[%clk 0:01:20]}  Ke7 {[%clk 0:01:23]} 34. Rc3 {[%clk 0:01:09]}  b5 {[%clk 0:01:21]} 35. axb5 {[%clk 0:01:09]}  cxb5 {[%clk 0:01:22]} 36. Rd3 {[%clk 0:01:06]}  f6 {[%clk 0:01:20]} 37. Nf3 {[%clk 0:01:04]}  Rxd7 {[%clk 0:01:21]} 38. Rxd7+ {[%clk 0:01:02]}  Kxd7 {[%clk 0:01:21]} 39. Nd4 {[%clk 0:01:02]}  a6 {[%clk 0:01:21]} 40. f5 {[%clk 0:01:00]}  Ne5 {[%clk 0:01:18]} 41. Ne6 {[%clk 0:00:56]}  Nd3 {[%clk 0:01:04]} 42. Nxg7 {[%clk 0:00:54]}  Nxb4 {[%clk 0:01:05]} 43. Nxh5 {[%clk 0:00:54]}  Ke7 {[%clk 0:01:05]} 44. Nf4 {[%clk 0:00:51]}  a5 {[%clk 0:01:06]} 45. Ne2 {[%clk 0:00:50]}  Nc2 {[%clk 0:01:03]} 46. Nc3 {[%clk 0:00:44]}  b4 {[%clk 0:01:03]} 47. Na4 {[%clk 0:00:42]}  Nd4 {[%clk 0:01:02]} 48. g4 {[%clk 0:00:42]}  Ne2+ {[%clk 0:01:01]} 49. Kf2 {[%clk 0:00:41]}  Nc3 {[%clk 0:01:01]} 50. Nxc3 {[%clk 0:00:37]}  bxc3 {[%clk 0:01:02]} 51. Ke3 {[%clk 0:00:38]}  Kd6 {[%clk 0:01:00]} 52. g5 {[%clk 0:00:38]}  fxg5 {[%clk 0:00:57]} 53. g4 {[%clk 0:00:37]}  Kc5 {[%clk 0:00:33]} 54. Kd3 {[%clk 0:00:37]}  Kb4 {[%clk 0:00:33]} 55. Kc2 {[%clk 0:00:35]}  Kc5 {[%clk 0:00:27]} 56. Kxc3 {[%clk 0:00:34]}  Kd5 {[%clk 0:00:26]} 57. Kb3 {[%clk 0:00:33]}  Kd6 {[%clk 0:00:24]} 58. Ka4 {[%clk 0:00:33]}  Kc6 {[%clk 0:00:25]} 59. Kxa5 {[%clk 0:00:33]}  Kc5 {[%clk 0:00:26]} 60. Ka4 {[%clk 0:00:29]}  Kc6 {[%clk 0:00:26]} 61. Kb4 {[%clk 0:00:29]}  Kd6 {[%clk 0:00:25]} 62. Kc4 {[%clk 0:00:29]}  Kc6 {[%clk 0:00:23]} 63. Kd4 {[%clk 0:00:30]}  Kd6 {[%clk 0:00:22]} 64. Ke4 {[%clk 0:00:30]}  Ke7 {[%clk 0:00:16]} 65. Ke5 {[%clk 0:00:30]}  Kf7 {[%clk 0:00:17]} 66. f6 {[%clk 0:00:30]}  Kg6 {[%clk 0:00:16]} 67. Ke6 {[%clk 0:00:31]}  Kh7 {[%clk 0:00:14]} 68. f7 {[%clk 0:00:29]} 1-0


[Site "https://www.chess.com"]

[Event "Titled Tuesday Blitz October 5 2021"]
[White "Mostbauer, Maximilian"]
[Black "Nozdrachev, Leonid"]
[WhiteFideId "1626680"]
[BlackFideId "24113433"]
[WhiteElo "2188"]
[BlackElo "2124"]
[Result "1-0"]
[Round "06"]
[TimeControl "180+1"]
[Date "2021.10.05"]
[WhiteClock "0:00:52"]
[BlackClock "0:00:27"]

1. d4 {[%clk 0:03:00]}  d6 {[%clk 0:02:42]} 2. Nf3 {[%clk 0:03:01]}  Nf6 {[%clk 0:02:40]} 3. g3 {[%clk 0:03:02]}  g6 {[%clk 0:02:38]} 4. Bg2 {[%clk 0:03:03]}  Bg7 {[%clk 0:02:39]} 5. O-O {[%clk 0:03:04]}  O-O {[%clk 0:02:39]} 6. b3 {[%clk 0:03:05]}  Nc6 {[%clk 0:02:39]} 7. Bb2 {[%clk 0:03:06]}  Ne4 {[%clk 0:02:39]} 8. Nbd2 {[%clk 0:03:05]}  Nxd2 {[%clk 0:02:38]} 9. Qxd2 {[%clk 0:03:06]}  e5 {[%clk 0:02:35]} 10. dxe5 {[%clk 0:03:06]}  Nxe5 {[%clk 0:02:36]} 11. Nxe5 {[%clk 0:03:06]}  Bxe5 {[%clk 0:02:37]} 12. c4 {[%clk 0:02:56]}  c6 {[%clk 0:02:33]} 13. Rad1 {[%clk 0:02:51]}  Be6 {[%clk 0:02:25]} 14. c5 {[%clk 0:02:37]}  Bxb2 {[%clk 0:02:22]} 15. Qxb2 {[%clk 0:02:38]}  d5 {[%clk 0:02:22]} 16. e4 {[%clk 0:02:38]}  Bg4 {[%clk 0:02:02]} 17. Rd4 {[%clk 0:02:16]}  Qf6 {[%clk 0:01:58]} 18. exd5 {[%clk 0:02:15]}  cxd5 {[%clk 0:01:59]} 19. Qd2 {[%clk 0:02:13]}  Be6 {[%clk 0:01:57]} 20. Bxd5 {[%clk 0:02:13]}  Rfd8 {[%clk 0:01:56]} 21. Rd1 {[%clk 0:02:13]}  Rac8 {[%clk 0:01:56]} 22. Bxe6 {[%clk 0:01:52]}  Rxd4 {[%clk 0:01:53]} 23. Bxf7+ {[%clk 0:01:51]}  Kxf7 {[%clk 0:01:40]} 24. Qxd4 {[%clk 0:01:52]}  Qxd4 {[%clk 0:01:35]} 25. Rxd4 {[%clk 0:01:53]}  Rxc5 {[%clk 0:01:30]} 26. Rd7+ {[%clk 0:01:53]}  Kf6 {[%clk 0:01:31]} 27. Rxb7 {[%clk 0:01:54]}  Ra5 {[%clk 0:01:30]} 28. a4 {[%clk 0:01:50]}  h5 {[%clk 0:01:30]} 29. h4 {[%clk 0:01:50]}  Ra6 {[%clk 0:01:25]} 30. Kg2 {[%clk 0:01:48]}  Rc6 {[%clk 0:01:23]} 31. a5 {[%clk 0:01:45]}  Rc3 {[%clk 0:01:18]} 32. b4 {[%clk 0:01:45]}  Rb3 {[%clk 0:01:17]} 33. b5 {[%clk 0:01:44]}  g5 {[%clk 0:01:08]} 34. hxg5+ {[%clk 0:01:33]}  Kxg5 {[%clk 0:01:09]} 35. a6 {[%clk 0:01:34]}  Kg6 {[%clk 0:00:59]} 36. Rb8 {[%clk 0:01:31]}  Ra3 {[%clk 0:00:56]} 37. Kh3 {[%clk 0:01:26]}  Ra4 {[%clk 0:00:50]} 38. f4 {[%clk 0:01:26]}  Ra2 {[%clk 0:00:51]} 39. Rg8+ {[%clk 0:01:21]}  Kh6 {[%clk 0:00:46]} 40. f5 {[%clk 0:01:19]}  Kh7 {[%clk 0:00:45]} 41. Ra8 {[%clk 0:01:17]}  Kh6 {[%clk 0:00:42]} 42. Rxa7 {[%clk 0:01:07]}  Kg5 {[%clk 0:00:39]} 43. Rf7 {[%clk 0:01:07]}  h4 {[%clk 0:00:35]} 44. gxh4+ {[%clk 0:01:07]}  Kf4 {[%clk 0:00:35]} 45. Rg7 {[%clk 0:01:05]}  Ra3+ {[%clk 0:00:30]} 46. Kh2 {[%clk 0:01:04]}  Ra5 {[%clk 0:00:30]} 47. f6 {[%clk 0:00:51]}  Rxb5 {[%clk 0:00:29]} 48. f7 {[%clk 0:00:52]}  Rb8 {[%clk 0:00:27]} 49. Rg8 {[%clk 0:00:52]} 1-0


[Site "https://www.chess.com"]